bitfinex-derivatives/quotes_BNBF0:USTF0_20250603
["timestamp","ask_amount","ask_price","bid_price","bid_amount"]
[1748953921751,3.73479903,665.32,664.51,0.6399898]
[1748953922057,3.73479903,665.41,664.52,0.6399898]
[1748953922253,3.73479903,665.41,664.53,0.6399898]
[1748953922456,3.73479903,665.41,664.54,0.6399898]
[1748953922655,0.30048979,665.58,664.4,0.77995553]
[1748953922656,3.73479903,665.44,664.4,0.30102347]
[1748953922857,3.73479903,665.44,664.41,0.63993012]
[1748953923158,3.73479903,665.53,664.4,0.30102347]
[1748953923459,3.73479903,665.53,664.41,0.63993012]
[1748953923659,3.73479903,665.48,664.42,0.63993012]
[1748953923860,3.73479903,665.48,664.43,0.63993012]
[1748953924054,3.73479903,665.49,664.44,0.63993012]
[1748953924260,3.73479903,665.49,664.45,0.63993012]
[1748953924560,3.73479903,665.48,664.4,0.30102347]
[1748953924860,3.73479903,665.48,664.41,0.63993327]
[1748953925057,3.73479903,665.49,664.42,0.63993327]
[1748953925258,3.73479903,665.49,664.43,0.63993327]
[1748953925459,0.30048979,665.58,664.4,0.30102347]
[1748953943370,0.30048979,665.58,664.45,0.4774992]
[1748953943573,0.30048979,665.58,664.46,0.4774992]
[1748953943876,0.30048979,665.58,664.5,0.4774992]
[1748953944077,0.30048979,665.58,664.49,0.4774992]
[1748953944477,0.30048979,665.58,664.44,0.4774992]
[1748953944675,0.30048979,665.58,664.45,0.4774992]
[1748953945272,0.30048979,665.58,664.46,0.4774992]
[1748953945477,0.30048979,665.58,664.47,0.4774992]
[1748953945675,0.30048979,665.58,664.48,0.4774992]
[1748953946475,0.30048979,665.58,664.49,0.4774992]
[1748953946674,0.30048979,665.58,664.5,0.4774992]
[1748953947581,0.30048979,665.58,664.52,0.4774992]
[1748953947880,0.30048979,665.58,664.51,0.4774992]
[1748953948579,0.30048979,665.58,664.4,0.30102347]
[1748953948580,0.30048979,665.58,664.53,0.4774992]
[1748953949075,0.30048979,665.58,664.64,0.4774992]
[1748953949479,0.30048979,665.58,664.65,0.4774992]
[1748953950279,0.30048979,665.58,664.64,0.4774992]
[1748953950479,0.30048979,665.58,664.45,0.47893206]
[1748953950480,0.30048979,665.58,664.72,0.4774992]
[1748953950679,3.73479903,665.57,664.72,0.4774992]
[1748953951080,3.73479903,665.56,664.72,0.4774992]
[1748953951482,3.73479903,665.56,664.74,0.4774992]
[1748953951783,3.73479903,665.56,664.76,0.4774992]
[1748953952178,3.73479903,665.54,664.77,0.4774992]
[1748953952376,3.73479903,665.54,664.79,0.4774992]
[1748953952581,3.73479903,665.53,664.81,0.4774992]
[1748953952982,3.73479903,665.52,664.81,0.4774992]
[1748953953283,3.73479903,665.52,664.68,0.4774992]
[1748953953582,0.30048979,665.58,664.73,0.4774992]
[1748953953776,0.30048979,665.58,664.72,0.4774992]
[1748953953981,0.30048979,665.58,664.73,0.4774992]
[1748953954482,0.30048979,665.58,664.79,0.4774992]
[1748953954884,3.73479903,665.56,664.79,0.4774992]
[1748953955678,3.73479903,665.46,664.81,0.4774992]
[1748953956384,3.73479903,665.46,664.8,0.4774992]
[1748953956780,3.73479903,665.46,664.4,0.30102347]
[1748953956781,3.73479903,665.46,664.82,0.4774992]
[1748953957180,3.73479903,665.45,664.82,0.4774992]
[1748953957587,3.73479903,665.45,664.81,0.4774992]
[1748953957980,3.73479903,665.46,664.81,0.4774992]
[1748953958886,0.30048979,665.58,664.84,0.4774992]
[1748953958887,3.73479903,665.47,664.84,0.4774992]
[1748953959186,3.73479903,665.47,664.74,0.4774992]
[1748953959385,3.73479903,665.53,664.74,0.4774992]
[1748953960088,3.73479903,665.53,664.71,0.4774992]
[1748953960288,3.73479903,665.52,664.8,0.4774992]
[1748953960687,3.73479903,665.52,664.78,0.4774992]
[1748953960884,0.30048979,665.58,664.79,0.4774992]
[1748953960885,3.73479903,665.54,664.79,0.4774992]
[1748953961085,3.73479903,665.54,664.97,0.4774992]
[1748953961283,3.73479903,665.41,664.97,0.12812889]
[1748953961487,3.73479903,665.41,664.97,0.03802572]
[1748953961683,3.73479903,665.41,664.82,0.47893206]
[1748953961886,3.73479903,665.41,664.87,0.47893206]
[1748953962087,3.73479903,665.44,664.88,0.63986487]
[1748953962288,3.73479903,665.44,664.89,0.63986487]
[1748953962488,0.30048979,665.58,664.53,0.47893206]
[1748953962689,3.73479903,665.67,664.54,0.639813]
[1748953962884,3.73479903,665.67,664.55,0.639813]
[1748953963084,3.73479903,665.67,664.56,0.639813]
[1748953963289,3.73479903,665.67,664.57,0.639813]
[1748953963489,3.73479903,665.67,664.58,0.639813]
[1748953963689,3.73479903,665.67,664.59,0.639813]
[1748953963991,3.73479903,665.68,664.6,0.639813]
[1748953964190,3.73479903,665.68,664.61,0.639813]
[1748953964383,3.73479903,665.68,664.62,0.639813]
[1748953964588,3.73479903,665.68,664.47,0.47893206]
[1748953964788,3.73479903,665.68,664.48,0.63980921]
[1748953964986,3.73479903,665.68,664.49,0.63980921]
[1748953965192,3.73479903,665.68,664.5,0.63980921]
[1748953965391,3.73479903,665.68,664.51,0.63980921]
[1748953965592,3.73479903,665.68,664.52,0.63980921]
[1748953965785,3.73479903,665.73,664.53,0.63980921]
[1748953965990,3.73479903,665.73,664.54,0.63980921]
[1748953966191,3.73479903,665.74,664.55,0.63980921]
[1748953966491,3.73479903,665.74,664.56,0.63980921]
[1748953966793,0.26188353,665.87,664.4,0.30102347]
[1748953966994,0.30036343,665.86,664.4,0.30102347]
[1748953973297,4.03516246,665.86,664.4,0.30102347]
[1748953974199,0.30036343,665.86,664.4,0.30102347]
[1748953974495,4.03516246,665.86,664.4,0.30102347]
[1748953976599,4.03516246,665.86,664.41,0.63988876]
[1748953976903,3.73479903,665.59,664.42,0.63988876]
[1748953977098,3.73479903,665.59,664.43,0.63988876]
[1748953977296,3.73479903,665.6,664.44,0.63988876]
[1748953977602,3.73479903,665.6,664.45,0.63988876]
[1748953977800,3.73479903,665.46,664.55,0.47893206]
[1748953977996,3.73479903,665.46,664.56,0.63988876]
[1748953978200,3.73479903,665.45,664.57,0.63988876]
[1748953978401,3.73479903,665.45,664.58,0.63988876]
[1748953978597,3.73479903,665.45,664.59,0.63988876]
[1748953980097,3.73479903,665.44,664.66,0.63988876]
[1748953980297,3.73479903,665.44,664.67,0.63988876]
[1748953980502,3.73479903,665.44,664.54,0.47893206]
[1748953980702,3.73479903,665.44,664.69,0.47893206]
[1748953980899,3.73479903,665.44,664.7,0.63989418]
[1748953981104,3.73479903,665.33,664.71,0.63989418]
[1748953981305,3.73479903,665.33,664.69,0.47893206]
[1748953981306,3.73479903,665.33,664.72,0.63989418]
[1748953981505,3.73479903,665.33,664.73,0.63989418]
[1748953981704,3.73479903,665.33,664.74,0.63989418]
[1748953981898,3.73479903,665.29,664.76,0.47893206]
[1748953982098,3.73479903,665.29,664.77,1.11882624]
[1748953982398,3.73479903,665.29,664.78,0.63989418]
[1748953982603,3.73479903,665.29,664.79,0.63989418]
[1748953982797,3.73479903,665.38,664.63,0.47893206]
[1748953983005,3.73479903,665.38,664.64,0.63989466]
[1748953983303,3.73479903,665.38,664.65,0.63989466]
[1748953983503,3.73479903,665.38,664.66,0.63989466]
[1748953983705,3.73479903,665.38,664.67,0.63989466]
[1748953983905,3.73479903,665.38,664.68,0.63989466]
[1748953984107,3.73479903,665.38,664.69,0.63989466]
[1748953984406,3.73479903,665.39,664.7,0.63989466]
[1748953984605,3.73479903,665.39,664.71,0.63989466]
[1748953984805,3.73479903,665.38,664.72,0.63989466]
[1748953985001,3.73479903,665.38,664.73,0.63989466]
[1748953985203,3.73479903,665.38,664.74,0.63989466]
[1748953985506,3.73479903,665.38,664.61,0.47893206]
[1748953985700,3.73479903,665.38,664.62,0.63990818]
[1748953985905,3.73479903,665.38,664.63,0.63990818]
[1748953986100,3.73479903,665.38,664.61,0.47893206]
[1748953986101,3.73479903,665.38,664.64,0.63990818]
[1748953986302,3.73479903,665.38,664.65,0.63990818]
[1748953986502,3.73479903,665.38,664.48,0.47893206]
[1748953986704,3.73479903,665.45,664.49,0.63991978]
[1748953986908,3.73479903,665.45,664.5,0.63991978]
[1748953987106,3.73479903,665.45,664.51,0.63991978]
[1748953987309,3.73479903,665.45,664.52,0.63991978]
[1748953987509,3.73479903,665.45,664.53,0.63991978]
[1748953987710,3.73479903,665.44,664.54,0.63991978]
[1748953988010,3.73479903,665.44,664.55,0.63991978]
[1748953988209,3.73479903,665.44,664.56,0.63991978]
[1748953988413,3.73479903,665.44,664.57,0.63991978]
[1748953988609,3.73479903,665.44,664.58,0.63991978]
[1748953988807,3.73479903,665.44,664.59,0.63991978]
[1748953989006,3.73479903,665.49,664.4,0.30102347]
[1748953989207,3.73479903,665.49,664.41,1.11885622]
[1748953989507,3.73479903,665.48,664.42,0.63992416]
[1748953989712,3.73479903,665.48,664.43,0.63992416]
[1748953989911,3.73479903,665.48,664.44,0.63992416]
[1748953990112,3.73479903,665.48,664.41,0.47893206]
[1748953990113,3.73479903,665.48,664.45,0.63992416]
[1748953990315,3.73479903,665.46,664.46,0.63992416]
[1748953990515,3.73479903,665.46,664.47,0.63992416]
[1748953990712,3.73479903,665.5,664.48,0.63992416]
[1748953991008,3.73479903,665.5,664.49,0.63992416]
[1748953991213,3.73479903,665.5,664.5,0.63992416]
[1748953991413,3.73479903,665.5,664.51,0.63992416]
[1748953991615,3.73479903,665.5,664.52,0.63992416]
[1748953991817,3.73479903,665.5,665.01,0.47916757]
[1748953992017,3.73479903,665.5,665.01,0.12049978]
[1748953992719,5.22871864,665.79,664.4,0.30102347]
[1748953992720,3.73479903,665.47,664.42,0.47893206]
[1748953992918,3.73479903,665.47,664.4,0.30102347]
[1748953992919,3.73479903,665.47,664.43,0.63992501]
[1748953993119,3.73479903,665.47,664.44,0.63992501]
[1748953993319,3.73479903,665.47,664.45,0.63992501]
[1748953993521,3.73479903,665.47,664.46,0.63992501]
[1748953993720,3.73479903,665.47,664.47,0.63992501]
[1748953993920,3.73479903,665.47,664.48,0.63992501]
[1748953994221,3.73479903,665.47,664.49,0.63992501]
[1748953994414,3.73479903,665.47,664.5,0.63992501]
[1748953994619,3.73479903,665.47,664.51,0.63992501]
[1748953994916,3.73479903,665.47,664.52,0.63992501]
[1748953995118,3.73479903,665.47,664.53,0.63992501]
[1748953995319,3.73479903,665.47,664.54,0.63992501]
[1748953995516,3.73479903,665.47,664.55,0.63992501]
[1748953995722,3.73479903,665.47,664.41,0.47893206]
[1748953995919,3.73479903,665.47,664.42,0.63992483]
[1748953996119,3.73479903,665.47,664.43,0.63992483]
[1748953996319,3.73479903,665.46,664.44,0.63992483]
[1748953996623,3.73479903,665.46,664.41,0.47893206]
[1748953996624,3.73479903,665.46,664.5,0.47893206]
[1748953996817,3.73479903,665.41,664.51,0.63992483]
[1748953997018,3.73479903,665.41,664.5,0.47893206]
[1748953997019,3.73479903,665.41,664.52,0.63992483]
[1748953997318,3.73479903,665.41,664.53,0.63992483]
[1748953997523,3.73479903,665.41,664.54,0.63992483]
[1748953997823,3.73479903,665.41,664.55,0.63992483]
[1748953998023,3.73479903,665.41,664.56,0.63992483]
[1748953998223,3.73479903,665.41,664.57,0.63992483]
[1748953998422,3.73479903,665.41,664.58,0.63992483]
[1748953998622,3.73479903,665.39,664.59,0.63992483]
[1748953998823,3.73479903,665.39,664.64,0.47893206]
[1748953999017,5.22871864,665.65,664.65,0.63992483]
[1748953999018,3.73479903,665.33,664.65,0.63992483]
[1748953999219,3.73479903,665.33,664.4,0.30102347]
[1748953999422,3.73479903,665.33,664.41,0.63992351]
[1748953999621,3.73479903,665.51,664.42,0.63992351]
[1748953999821,3.73479903,665.51,664.4,0.30102347]
[1748953999822,3.73479903,665.51,664.43,0.63992351]
[1748954000020,3.73479903,665.51,664.44,0.63992351]
[1748954000220,3.73479903,665.51,664.45,0.63992351]
[1748954000424,3.73479903,665.51,664.4,0.30102347]
[1748954000425,3.73479903,665.48,664.46,0.63992351]
[1748954000620,3.73479903,665.48,664.47,0.63992351]
[1748954000919,3.73479903,665.48,664.48,0.63992351]
[1748954001124,3.73479903,665.48,664.49,0.63992351]
[1748954001322,3.73479903,665.48,664.5,0.63992351]
[1748954001520,3.73479903,665.49,664.51,0.63992351]
[1748954001724,3.73479903,665.49,664.4,0.30102347]
[1748954001725,3.73479903,665.49,664.52,0.63992351]
[1748954001920,3.73479903,665.49,664.53,0.63992351]
[1748954002120,3.73479903,665.49,664.54,0.63992351]
[1748954002425,3.73479903,665.49,664.55,0.63992351]
[1748954002625,3.73479903,665.49,664.56,0.63992351]
[1748954002822,3.73479903,665.49,664.57,0.63992351]
[1748954003122,3.73479903,665.49,664.58,0.63992351]
[1748954003325,3.73479903,665.49,664.44,0.47893206]
[1748954003525,3.73479903,665.49,664.45,0.63992318]
[1748954003723,3.73479903,665.49,664.46,0.63992318]
[1748954003922,3.73479903,665.48,664.47,0.63992318]
[1748954004120,3.73479903,665.48,664.48,0.63992318]
[1748954004323,3.73479903,665.48,664.49,0.63992318]
[1748954004521,3.73479903,665.48,664.5,0.63992318]
[1748954004725,3.73479903,665.48,664.51,0.63992318]
[1748954005026,3.73479903,665.48,664.52,0.63992318]
[1748954005220,3.73479903,665.48,664.53,0.63992318]
[1748954005424,3.73479903,665.48,664.54,0.63992318]
[1748954005623,3.73479903,665.46,664.4,0.30102347]
[1748954005824,3.73479903,665.46,664.41,0.63992367]
[1748954006128,3.73479903,665.46,664.42,0.63992367]
[1748954006320,3.73479903,665.46,664.43,0.63992367]
[1748954006625,3.73479903,665.46,664.4,0.30102347]
[1748954006626,3.73479903,665.46,664.44,0.63992367]
[1748954006826,3.73479903,665.46,664.45,0.63992367]
[1748954007027,3.73479903,665.46,664.46,0.63992367]
[1748954007327,3.73479903,665.46,664.4,0.30102347]
[1748954007328,3.73479903,665.46,664.47,0.63992367]
[1748954007521,3.73479903,665.46,664.48,0.63992367]
[1748954007722,3.73479903,665.46,664.49,0.63992367]
[1748954007922,3.73479903,665.47,664.5,0.63992367]
[1748954008121,3.73479903,665.47,664.4,0.30102347]
[1748954008122,3.73479903,665.47,664.51,0.63992367]
[1748954008327,3.73479903,665.47,664.52,0.63992367]
[1748954008530,3.73479903,665.47,664.53,0.63992367]
[1748954008727,3.73479903,665.47,664.54,0.63992367]
[1748954008930,3.73479903,665.46,664.4,0.30102347]
[1748954009125,3.73479903,665.46,664.59,0.47893206]
[1748954009328,3.73479903,665.34,664.6,0.63992422]
[1748954009527,3.73479903,665.34,664.59,0.47893206]
[1748954009528,3.73479903,665.34,664.61,0.63992422]
[1748954009829,5.22871864,665.76,664.62,1.11885628]
[1748954009830,3.73479903,665.32,664.62,1.11885628]
[1748954010030,3.73479903,665.32,664.63,0.63992422]
[1748954010229,3.73479903,665.32,664.64,0.63992422]
[1748954010431,3.73479903,665.32,664.65,0.63992422]
[1748954010629,3.73479903,665.32,664.66,0.63992422]
[1748954010830,3.73479903,665.32,664.67,0.63992422]
[1748954011029,3.73479903,665.32,664.68,0.63992422]
[1748954011229,3.73479903,665.32,664.69,0.63992422]
[1748954011530,3.73479903,665.32,664.7,0.63992422]
[1748954011727,3.73479903,665.32,664.71,0.63992422]
[1748954011930,3.73479903,665.32,664.54,0.47893206]
[1748954012130,5.22871864,665.58,664.4,0.30102347]
[1748954012327,5.22871864,665.58,664.41,1.20780974]
[1748954012527,5.22871864,665.58,664.42,1.20780974]
[1748954012731,3.73479903,665.77,664.4,0.30102347]
[1748954012732,3.73479903,665.77,664.43,1.20771466]
[1748954012933,3.73479903,665.77,664.44,1.20771466]
[1748954013132,3.73479903,665.8,664.45,1.20771466]
[1748954013434,3.73479903,665.8,664.4,0.30102347]
[1748954013636,3.73479903,665.8,664.41,2.35890883]
[1748954013928,3.73479903,665.81,664.42,1.20807229]
[1748954014131,3.73479903,665.81,664.43,1.20807229]
[1748954014332,3.73479903,665.81,664.44,1.50907764]
[1748954014533,3.73479903,665.81,664.44,0.30100535]
[1748954015429,3.73479903,665.76,664.44,0.30100535]
[1748954015632,3.73479903,665.76,664.45,1.20799804]
[1748954015832,3.73479903,665.82,664.46,1.20799804]
[1748954016035,3.73479903,665.82,664.44,0.30100535]
[1748954016233,3.73479903,665.68,664.45,0.63985676]
[1748954016430,3.73479903,665.68,664.44,0.30100535]
[1748954016632,3.73479903,665.64,664.44,0.30100535]
[1748954017130,3.73479903,665.6,664.44,0.30100535]
[1748954019132,3.73479903,665.59,664.44,0.30100535]
[1748954019534,3.73479903,665.57,664.44,0.30100535]
[1748954020430,3.73479903,665.59,664.44,0.30100535]
[1748954020833,3.73479903,665.57,664.44,0.30100535]
[1748954021430,3.73479903,665.57,664.52,0.4790945]
[1748954021634,3.73479903,665.57,664.62,0.4790945]
[1748954021937,3.73479903,665.45,664.62,0.4790945]
[1748954022134,3.73479903,665.37,664.73,0.4790945]
[1748954022837,3.73479903,665.34,664.62,0.4790945]
[1748954023032,3.73479903,665.34,664.61,0.4790945]
[1748954023234,3.73479903,665.38,664.65,0.4790945]
[1748954023630,5.22871864,665.66,664.64,0.4790945]
[1748954023631,3.73479903,665.35,664.64,0.4790945]
[1748954023940,3.73479903,665.35,664.65,0.4790945]
[1748954024134,3.73479903,665.35,664.47,0.47893206]
[1748954024135,3.73479903,665.35,664.64,0.4790945]
[1748954025237,3.73479903,665.35,664.62,0.4790945]
[1748954025434,3.73479903,665.39,664.6,0.4790945]
[1748954025637,3.73479903,665.39,664.63,0.4790945]
[1748954025837,3.73479903,665.4,664.63,0.4790945]
[1748954026133,3.73479903,665.4,664.62,0.4790945]
[1748954026732,3.73479903,665.4,664.48,0.4790945]
[1748954026938,3.73479903,665.4,664.47,0.4790945]
[1748954027333,3.73479903,665.5,664.47,0.4790945]
[1748954029743,3.73479903,665.5,664.46,0.4790945]
[1748954030545,3.73479903,665.51,664.46,0.4790945]
[1748954032743,3.73479903,665.51,664.51,0.4790945]
[1748954032946,3.73479903,665.47,664.51,0.4790945]
[1748954034642,3.73479903,665.46,664.53,0.4790945]
[1748954035248,3.73479903,665.46,664.44,0.30100535]
[1748954035249,3.73479903,665.45,664.57,0.4790945]
[1748954035450,3.73479903,665.45,664.58,0.4790945]
[1748954035646,3.73479903,665.42,664.58,0.4790945]
[1748954036051,3.73479903,665.41,664.58,0.4790945]
[1748954036654,3.73479903,665.41,664.87,0.4790945]
[1748954036852,3.73479903,665.41,664.85,0.12489443]
[1748954037152,5.22871864,665.43,664.69,0.47893206]
[1748954037153,3.73479903,665.21,664.69,0.47893206]
[1748954037354,3.73479903,665.21,664.7,0.63995857]
[1748954037660,3.73479903,665.21,664.71,0.63995857]
[1748954037850,3.73479903,665.21,664.72,0.63995857]
[1748954038047,3.73479903,665.21,664.73,0.63995857]
[1748954038253,3.73479903,665.22,664.74,0.63995857]
[1748954038454,3.73479903,665.22,664.75,0.63995857]
[1748954038654,3.73479903,665.22,664.76,0.63995857]
[1748954038854,3.73479903,665.21,664.77,0.63995857]
[1748954039052,3.73479903,665.21,664.78,0.63995857]
[1748954039257,3.73479903,665.25,664.61,0.47893206]
[1748954039556,3.73479903,665.25,664.64,0.47893206]
[1748954039755,3.73479903,665.24,664.65,0.63995939]
[1748954039949,3.73479903,665.24,664.66,0.63995939]
[1748954040151,3.73479903,665.24,664.67,0.63995939]
[1748954040455,5.22871864,665.46,664.64,0.47893206]
[1748954040456,3.73479903,665.23,664.68,0.63995939]
[1748954040657,3.73479903,665.23,664.69,0.63995939]
[1748954040955,3.73479903,665.23,664.44,0.30100535]
[1748954040956,3.73479903,665.31,664.7,0.63995939]
[1748954041152,3.73479903,665.31,664.71,0.63995939]
[1748954041456,7.46959806,665.81,664.72,0.63995939]
[1748954041457,3.73479903,665.34,664.72,0.63995939]
[1748954041653,3.73479903,665.34,664.61,0.47893206]
[1748954041654,3.73479903,665.34,664.73,0.63995939]
[1748954041955,3.73479903,665.36,664.74,0.63995939]
[1748954042258,3.73479903,665.37,664.62,0.47893206]
[1748954042456,3.73479903,665.37,664.63,0.63989035]
[1748954042653,5.22871864,665.61,664.62,0.47893206]
[1748954042654,3.73479903,665.36,664.64,0.63989035]
[1748954042952,3.73479903,665.36,664.65,0.63989035]
[1748954043153,3.73479903,665.37,664.66,0.63989035]
[1748954043353,3.73479903,665.37,664.67,0.63989035]
[1748954043554,3.73479903,665.37,664.61,0.47893206]
[1748954043555,3.73479903,665.37,664.68,0.63989035]
[1748954043756,3.73479903,665.37,664.69,0.63989035]
[1748954043951,3.73479903,665.37,664.7,0.63989035]
[1748954044156,3.73479903,665.37,664.71,0.63989035]
[1748954044457,3.73479903,665.37,664.72,0.63989035]
[1748954044657,3.73479903,665.37,664.73,0.63989035]
[1748954044857,3.73479903,665.37,664.74,0.63989035]
[1748954045058,3.73479903,665.36,664.61,0.47893206]
[1748954045357,3.73479903,665.36,664.62,0.63989602]
[1748954045559,3.73479903,665.3,664.63,0.63989602]
[1748954045858,3.73479903,665.3,664.64,0.63989602]
[1748954046059,3.73479903,665.32,664.65,0.63989602]
[1748954046258,3.73479903,665.32,664.66,0.63989602]
[1748954046558,3.73479903,665.33,664.67,0.63989602]
[1748954046757,3.73479903,665.33,664.68,0.63989602]
[1748954046959,3.73479903,665.33,664.69,0.63989602]
[1748954047258,3.73479903,665.33,664.7,0.63989602]
[1748954047459,3.73479903,665.33,664.71,0.63989602]
[1748954047659,3.73479903,665.33,664.72,0.63989602]
[1748954047859,3.73479903,665.32,664.6,0.47893206]
[1748954048061,3.73479903,665.32,664.61,0.63989321]
[1748954048254,3.73479903,665.32,664.62,0.63989321]
[1748954048457,3.73479903,665.32,664.63,0.63989321]
[1748954048659,3.73479903,665.32,664.64,0.63989321]
[1748954048858,3.73479903,665.32,664.65,0.63989321]
[1748954049060,3.73479903,665.32,664.66,0.63989321]
[1748954049260,3.73479903,665.44,664.44,0.77993741]
[1748954049454,3.73479903,665.44,664.46,0.47893206]
[1748954049655,3.73479903,665.44,664.47,0.63989178]
[1748954049855,3.73479903,665.44,664.48,0.63989178]
[1748954050056,3.73479903,665.44,664.49,0.63989178]
[1748954050258,3.73479903,665.44,664.5,0.63989178]
[1748954050564,3.73479903,665.44,664.44,0.30100535]
[1748954050565,3.73479903,665.44,664.51,0.63989178]
[1748954050759,3.73479903,665.42,664.52,0.63989178]
[1748954050960,3.73479903,665.42,664.5,0.47893206]
[1748954050961,3.73479903,665.42,664.53,0.63989178]
[1748954051157,3.73479903,665.42,664.54,0.63989178]
[1748954051362,3.73479903,665.42,664.55,0.63989178]
[1748954051559,3.73479903,665.39,664.56,0.63989178]
[1748954051763,3.73479903,665.39,664.54,0.47893206]
[1748954051764,3.73479903,665.39,664.57,0.63989178]
[1748954051966,3.73479903,665.39,664.58,0.63989178]
[1748954052165,3.73479903,665.39,664.59,0.63989178]
[1748954052365,3.73479903,665.39,664.6,0.63989178]
[1748954052565,3.73479903,665.39,664.61,0.63989178]
[1748954052761,3.73479903,665.39,664.62,0.63989178]
[1748954052962,3.73479903,665.39,664.63,0.63989178]
[1748954053162,3.73479903,665.39,664.64,0.63989178]
[1748954053464,3.73479903,665.39,664.65,0.63989178]
[1748954053868,3.73479903,665.39,664.51,0.47893206]
[1748954054168,3.73479903,665.41,664.52,0.63989241]
[1748954054363,3.73479903,665.41,664.53,0.63989241]
[1748954054562,3.73479903,665.41,664.54,0.63989241]
[1748954054766,3.73479903,665.41,664.55,0.63989241]
[1748954054966,3.73479903,665.41,664.56,0.63989241]
[1748954055265,3.73479903,665.42,664.57,0.63989241]
[1748954055465,3.73479903,665.42,664.58,0.63989241]
[1748954055667,3.73479903,665.5,664.59,0.63989241]
[1748954055864,3.73479903,665.5,664.6,0.63989241]
[1748954056166,3.73479903,665.49,664.61,0.63989241]
[1748954056368,3.73479903,665.49,664.62,0.63989241]
[1748954056569,3.73479903,665.48,664.63,0.63989241]
[1748954056770,3.73479903,665.48,664.64,0.63989241]
[1748954056969,3.73479903,665.48,664.65,0.63989241]
[1748954057170,3.73479903,665.49,664.66,0.63989241]
[1748954057366,3.73479903,665.49,664.52,0.47893206]
[1748954057572,3.73479903,665.49,664.53,0.63989005]
[1748954057765,3.73479903,665.49,664.54,0.63989005]
[1748954057969,3.73479903,665.49,664.55,0.63989005]
[1748954058166,3.73479903,665.48,664.56,0.63989005]
[1748954058364,3.73479903,665.48,664.57,0.63989005]
[1748954058569,3.73479903,665.48,664.58,0.63989005]
[1748954058772,3.73479903,665.48,664.52,0.47893206]
[1748954058773,3.73479903,665.48,664.59,0.63989005]
[1748954059069,3.73479903,665.48,664.6,0.63989005]
[1748954059373,3.73479903,665.55,664.44,0.30100535]
[1748954059672,3.73479903,665.55,664.45,0.63989128]
[1748954059870,3.73479903,665.55,664.46,0.63989128]
[1748954060067,3.73479903,665.55,664.47,0.63989128]
[1748954060370,3.73479903,665.55,664.48,0.63989128]
[1748954060671,3.73479903,665.55,664.49,0.63989128]
[1748954060871,3.73479903,665.55,664.5,0.63989128]
[1748954061074,3.73479903,665.55,664.51,0.63989128]
[1748954061268,3.73479903,665.57,664.52,0.63989128]
[1748954061468,3.73479903,665.57,664.53,0.63989128]
[1748954061670,3.73479903,665.55,664.54,0.63989128]
[1748954061873,3.73479903,665.55,664.55,0.63989128]
[1748954062071,3.73479903,665.55,664.44,0.77993741]
[1748954062072,3.73479903,665.55,664.56,0.63989128]
[1748954062269,3.73479903,665.55,664.57,0.63989128]
[1748954062472,3.73479903,665.55,664.58,0.63989128]
[1748954062768,3.73479903,665.55,664.44,0.77993741]
[1748954063070,5.22871864,665.84,664.45,0.63988956]
[1748954063071,3.73479903,665.56,664.45,0.63988956]
[1748954063269,3.73479903,665.56,664.46,0.63988956]
[1748954063475,3.73479903,665.56,664.47,0.63988956]
[1748954063674,3.73479903,665.54,664.48,0.63988956]
[1748954063874,3.73479903,665.54,664.49,0.63988956]
[1748954064074,3.73479903,665.54,664.5,0.63988956]
[1748954064275,3.73479903,665.54,664.51,0.63988956]
[1748954064577,3.73479903,665.54,664.52,0.63988956]
[1748954064777,3.73479903,665.54,664.53,0.63988956]
[1748954064971,3.73479903,665.54,664.54,0.63988956]
[1748954065174,3.73479903,665.54,664.55,0.63988956]
[1748954065477,3.73479903,665.54,664.56,0.63988956]
[1748954065671,3.73479903,665.54,664.57,0.63988956]
[1748954065870,3.73479903,665.53,664.58,0.63988956]
[1748954066075,3.73479903,665.53,664.59,0.63988956]
[1748954066378,3.73479903,665.61,664.44,0.30100535]
[1748954066574,3.73479903,665.61,664.45,0.63988986]
[1748954066778,3.73479903,665.62,664.46,0.63988986]
[1748954067075,3.73479903,665.62,664.47,0.63988986]
[1748954067277,3.73479903,665.62,664.48,0.63988986]
[1748954067478,3.73479903,665.62,664.49,0.63988986]
[1748954067672,3.73479903,665.62,664.44,0.30100535]
[1748954067873,3.73479903,665.62,664.45,0.63989158]
[1748954068077,3.73479903,665.62,664.46,0.63989158]
[1748954068372,3.73479903,665.62,664.47,0.63989158]
[1748954068572,3.73479903,665.62,664.48,0.63989158]
[1748954068871,3.73479903,665.62,664.49,0.63989158]
[1748954069077,3.73479903,665.62,664.5,0.63989071]
[1748954069277,3.73479903,665.62,664.51,0.63989071]
[1748954069478,3.73479903,665.55,664.52,0.63989071]
[1748954069679,3.73479903,665.55,664.53,0.63989071]
[1748954069879,3.73479903,665.55,664.54,0.63989071]
[1748954070078,3.73479903,665.56,664.55,0.63989071]
[1748954070278,3.73479903,665.56,664.44,0.30100535]
[1748954070575,3.73479903,665.55,664.45,0.63991103]
[1748954070775,3.73479903,665.55,664.46,0.63991103]
[1748954070980,3.73479903,665.55,664.47,0.63991103]
[1748954071180,3.73479903,665.55,664.48,0.63991103]
[1748954071379,3.73479903,665.55,664.49,0.63991103]
[1748954071575,3.73479903,665.55,664.5,0.63991103]
[1748954071775,3.73479903,665.55,664.44,0.30100535]